fUST/lending_fUST_20250822
["ID","MTS","AMOUNT","RATE_DAILY","PERIOD"]
[380794482,1755862239302,-480.0,0.00026989,10]
[380794483,1755862239312,-240.03954782,0.00026989,10]
[380794484,1755862239322,-480.0,0.00026989,10]
[380794485,1755862239332,-302.01150709,0.00026989,10]
[380794486,1755862239341,-480.0,0.00026989,10]
[380794487,1755862239350,-480.0,0.00026989,10]
[380794488,1755862239359,-480.0,0.00026989,10]
[380794489,1755862239369,-401.26364293,0.00026989,10]
[380794490,1755862239378,-163.12371991,0.00026989,10]
[380794491,1755862239388,-480.0,0.00026989,10]
[380794492,1755862239397,-480.0,0.00026989,10]
[380794493,1755862239407,-480.0,0.00026989,10]
[380794494,1755862239417,-480.0,0.00026989,10]
[380794495,1755862239427,-354.07124322,0.00026989,10]
[380794496,1755862239437,-287.0,0.00026989,10]
[380794497,1755862239447,-87201.73679083,0.0002699,2]
[380794498,1755862239457,-500.0,0.00027043,2]
[380794499,1755862239466,-480.0,0.0002712,10]
[380794500,1755862239476,-480.0,0.0002712,10]
[380794501,1755862239486,-500.0,0.00027159,2]
[380794502,1755862239495,-636.22113157,0.000272,2]
[380794503,1755862239504,-480.0,0.00027245,10]
[380794504,1755862239513,-480.0,0.00027245,10]
[380794505,1755862239523,-480.0,0.00027245,10]
[380794506,1755862239532,-480.0,0.00027245,3]
[380794507,1755862239542,-480.0,0.00027245,10]
[380794508,1755862239647,-480.0,0.00027245,10]
[380794509,1755862239657,-480.0,0.00027263,10]
[380794510,1755862239667,-421.99638535,0.00027263,10]
[380794511,1755862239677,-480.0,0.00027263,10]
[380794512,1755862239689,-520.0,0.00027263,10]
[380794513,1755862239699,-480.0,0.00027263,10]
[380794514,1755862239708,-480.0,0.00027263,10]
[380794515,1755862239717,-480.0,0.00027263,10]
[380794516,1755862239727,-480.0,0.00027263,10]
[380794517,1755862239736,-500.0,0.00027273,2]
[380794518,1755862239745,-1404.95568375,0.00027297,2]
[380794519,1755862239754,-348.96368293,0.00027297,2]
[380794520,1755862239767,-160.0,0.00027298,2]
[380794521,1755862239777,-844.33851978,0.000273,2]
[380794522,1755862239788,-480.0,0.00027394,10]
[380794523,1755862239798,-1229.95584532,0.00027397,2]
[380794524,1755862239808,-51699.51094819,0.00027403,2]
[380794529,1755862240333,-3243.73306436,0.00027403,2]
[380794531,1755862240346,-460.0,0.00027403,2]
[380794532,1755862240357,-680.73721652,0.00027403,2]
[380794533,1755862240369,-754.45986901,0.00027403,2]
[380794534,1755862240380,-511.58328017,0.00027403,2]
[380794535,1755862240395,-2780.48160899,0.00027403,2]
[380794536,1755862240407,-2778.04629647,0.00027403,2]
[380794537,1755862240419,-2274.14385889,0.00027403,2]
[380794538,1755862240430,-8591.68458959,0.00027405,2]
[380794539,1755862240448,-607.091838,0.00027405,2]
[380794556,1755862243621,-480.0,0.00025972,10]
[380794557,1755862243631,-480.0,0.00026024,10]
[380794558,1755862243641,-55983.91971501,0.00027405,2]
[380794559,1755862243651,-300.0,0.00027408,20]
[380794560,1755862243661,-300.0,0.00027408,20]
[380794561,1755862243670,-300.0,0.00027408,20]
[380794562,1755862243679,-300.0,0.00027408,20]
[380794563,1755862243691,-300.0,0.00027408,20]
[380794564,1755862243701,-300.0,0.00027408,20]
[380794565,1755862243711,-300.0,0.00027408,20]
[380794566,1755862243720,-300.0,0.00027408,20]
[380794567,1755862243730,-300.0,0.00027408,20]
[380794568,1755862243739,-300.0,0.00027408,20]
[380794569,1755862243749,-300.0,0.00027408,20]
[380794570,1755862243758,-300.0,0.00027408,20]
[380794571,1755862243768,-300.0,0.00027408,20]
[380794572,1755862243778,-300.0,0.00027408,20]
[380794573,1755862243787,-300.0,0.00027408,20]
[380794574,1755862243797,-461.15880936,0.00027413,10]
[380794575,1755862243806,-480.0,0.00027413,10]
[380794576,1755862243816,-480.0,0.00027413,10]
[380794577,1755862243825,-480.0,0.00027413,10]
[380794578,1755862243835,-480.0,0.00027413,10]
[380794579,1755862243845,-481.33020061,0.00027413,10]
[380794580,1755862243854,-482.72625272,0.00027413,10]
[380794581,1755862243863,-363.52691368,0.00027413,10]
[380794582,1755862243873,-480.0,0.00027413,10]
[380794583,1755862243883,-574.5952162,0.00027413,10]
[380794584,1755862243892,-480.0,0.00027413,10]
[380794585,1755862243902,-482.61765926,0.00027413,10]
[380794586,1755862243911,-480.0,0.00027413,10]
[380794587,1755862243921,-480.0,0.00027413,10]
[380794588,1755862243931,-480.0,0.00027413,10]
[380794589,1755862243941,-480.0,0.00027413,10]
[380794590,1755862243950,-482.5620938,0.00027413,10]
[380794591,1755862243959,-482.98320907,0.00027413,10]
[380794592,1755862243969,-465.1288558,0.00027413,10]
[380794593,1755862243978,-480.0,0.00027413,10]
[380794594,1755862243988,-488.03253123,0.00027413,10]
[380794595,1755862243997,-616.14675918,0.00027413,10]
[380794596,1755862244008,-480.0,0.00027413,10]
[380794597,1755862244018,-480.0,0.00027413,10]
[380794598,1755862244028,-484.23924881,0.00027413,10]
[380794599,1755862244037,-480.0,0.00027413,10]
[380794600,1755862244047,-480.0,0.00027413,10]
[380794601,1755862244056,-480.0,0.00027413,7]
[380794602,1755862244066,-480.0,0.00027413,10]
[380794603,1755862244076,-480.0,0.00027413,10]
[380794604,1755862244085,-480.0,0.00027413,10]
[380794605,1755862244095,-320.01086731,0.00027413,10]
[380794606,1755862244104,-480.0,0.00027413,10]
[380794607,1755862244114,-480.0,0.00027413,10]
[380794608,1755862244125,-483.2922134,0.00027413,10]
[380794609,1755862244134,-480.0,0.00027413,10]
[380794610,1755862244144,-480.0,0.00027413,10]
[380794611,1755862244153,-480.0,0.00027413,10]
[380794612,1755862244163,-480.0,0.00027413,10]
[380794613,1755862244173,-480.0,0.00027413,10]
[380794614,1755862244182,-460.0,0.00027413,10]
[380794615,1755862244192,-480.0,0.00027413,10]
[380794616,1755862244202,-480.0,0.00027413,10]
[380794617,1755862244211,-480.0,0.00027413,10]
[380794618,1755862244221,-480.0,0.00027413,10]
[380794619,1755862244230,-480.0,0.00027413,10]
[380794620,1755862244240,-480.0,0.00027413,10]
[380794621,1755862244250,-480.0,0.00027413,10]
[380794622,1755862244260,-480.0,0.00027413,10]
[380794623,1755862244270,-480.0,0.00027413,10]
[380794624,1755862244279,-480.0,0.00027413,10]
[380794625,1755862244289,-480.0,0.00027413,10]
[380794626,1755862244298,-480.0,0.00027413,10]
[380794627,1755862244308,-465.81087191,0.00027413,10]
[380794628,1755862244317,-480.0,0.00027413,10]
[380794629,1755862244329,-455.31106279,0.00027413,10]
[380794630,1755862244341,-480.0,0.00027413,10]
[380794631,1755862244350,-480.0,0.00027413,10]
[380794632,1755862244359,-480.0,0.00027413,10]
[380794633,1755862244369,-500.0,0.00027413,10]
[380794634,1755862244378,-327.25856176,0.00027413,10]
[380794635,1755862244387,-480.0,0.00027413,10]
[380794636,1755862244398,-480.0,0.00027413,10]
[380794637,1755862244413,-480.0,0.00027413,10]
[380794638,1755862244423,-480.0,0.00027413,10]
[380794639,1755862244432,-480.0,0.00027413,10]
[380794640,1755862244442,-480.0,0.00027413,10]
[380794641,1755862244452,-5296.61753451,0.00027415,2]
[380794642,1755862244471,-29155.24116052,0.00027415,2]
[380794660,1755862246430,-101769.57890926,0.00027415,2]
[380794661,1755862246442,-4090.22211442,0.00027415,2]
[380794662,1755862246453,-901.63921764,0.00027415,2]
[380794663,1755862246464,-304.49590655,0.00027415,2]
[380794664,1755862246576,-665.64126112,0.00027415,2]
[380794682,1755862336104,486.94043452,0.000199,2]
[380794719,1755862505812,470.70908649,0.000199,2]
[380794762,1755862675611,455.01878381,0.000199,2]
[380794797,1755862843704,439.85149091,0.000199,2]
[380794821,1755863018839,425.0210365,0.000199,2]
[380794837,1755863142123,-425.02103628,0.0002157,2]
[380794838,1755863142144,-425.02103628,0.00023241,2]
[380794839,1755863142165,-425.02103628,0.00024911,2]
[380794840,1755863142187,-157.0,0.00025682,7]
[380794841,1755863142207,-157.0,0.00025782,7]
[380794842,1755863142228,-199.0,0.00025872,10]
[380794843,1755863142248,-157.0,0.00025882,7]
[380794844,1755863142267,-300.0,0.00025971,2]
[380794845,1755863142289,-1200.0,0.00025971,2]
[380794846,1755863142308,-480.0,0.00025972,10]
[380794847,1755863142329,-480.0,0.00025972,10]
[380794848,1755863142350,-480.0,0.00025972,10]
[380794849,1755863142371,-480.0,0.00025972,10]
[380794850,1755863142391,-480.0,0.00025972,10]
[380794851,1755863142412,-157.0,0.00025982,7]
[380794852,1755863142434,-480.0,0.00026024,10]
[380794853,1755863142455,-480.0,0.00026024,10]
[380794854,1755863142476,-157.0,0.00026082,7]
[380794855,1755863142496,-157.0,0.00026182,7]
[380794856,1755863142515,-480.0,0.00026246,10]
[380794857,1755863142536,-480.0,0.00026246,10]
[380794858,1755863142557,-480.0,0.00026246,10]
[380794859,1755863142577,-480.0,0.00026246,10]
[380794860,1755863142598,-157.0,0.00026282,7]
[380794861,1755863142618,-480.0,0.00026298,10]
[380794862,1755863142638,-157.076,0.00026382,7]
[380794863,1755863142657,-501.70312654,0.00026463,2]
[380794864,1755863142677,-480.0,0.0002652,10]
[380794865,1755863142698,-480.0,0.0002652,10]
[380794866,1755863142720,-480.0,0.0002652,10]
[380794867,1755863142742,-480.0,0.00026572,10]
[380794868,1755863142761,-528.9579881,0.00026572,10]
[380794869,1755863142783,-425.02103628,0.00026582,5]
[380794870,1755863142803,-480.0,0.00026794,10]
[380794871,1755863142824,-480.0,0.00026794,10]
[380794872,1755863142845,-480.0,0.00026794,10]
[380794873,1755863142867,-199.0,0.0002683,7]
[380794874,1755863142887,-396.95627069,0.00026989,10]
[380794875,1755863142907,-480.0,0.00026989,10]
[380794876,1755863142930,-480.0,0.00026989,10]
[380794877,1755863142951,-199.0,0.00027048,7]
[380794878,1755863142971,-480.0,0.00027068,10]
[380794879,1755863142995,-480.0,0.00027068,10]
[380794880,1755863143019,-480.0,0.00027068,10]
[380794881,1755863143039,-480.0,0.00027166,10]
[380794882,1755863143060,-199.0,0.00027167,2]
[380794883,1755863143083,-480.0,0.00027199,10]
[380794884,1755863143104,-480.0,0.00027199,10]
[380794885,1755863143124,-480.0,0.00027199,10]
[380794886,1755863143144,-480.0,0.00027199,10]
[380794887,1755863143165,-199.0,0.00027201,2]
[380794888,1755863143185,-574.44731814,0.00027342,10]
[380794889,1755863143207,-480.0,0.00027342,10]
[380794890,1755863143228,-199.12,0.00027342,10]
[380794891,1755863143248,-486.46,0.00027393,10]
[380794892,1755863143269,-480.0,0.00027393,3]
[380794893,1755863143292,-158.0,0.00027393,10]
[380794894,1755863143313,-480.0,0.00027393,10]
[380794895,1755863143334,-576.92,0.00027393,10]
[380794896,1755863143353,-215.90555669,0.00027396,2]
[380794897,1755863143373,-844.33851978,0.00027398,2]
[380794898,1755863143393,-1000.0,0.00027403,2]
[380794899,1755863143413,-1000.0,0.00027403,2]
[380794900,1755863143434,-1000.0,0.00027403,2]
[380794901,1755863143453,-1000.0,0.00027403,2]
[380794902,1755863143473,-1000.0,0.00027403,2]
[380794903,1755863143493,-1000.0,0.00027403,2]
[380794904,1755863143515,-1000.0,0.00027405,2]
[380794905,1755863143537,-441.98,0.00027405,2]
[380794906,1755863143556,-160.0,0.00027406,2]
[380794907,1755863143576,-293.95721228,0.00027415,2]
[380794908,1755863143597,-168.0,0.00027445,2]
[380794909,1755863143620,-311.75388055,0.00027473,10]
[380794910,1755863143641,-480.0,0.00027473,10]
[380794911,1755863143765,-480.0,0.00027473,10]
[380794912,1755863143787,-520.564487,0.00027473,10]
[380794913,1755863143807,-281.31,0.000275,7]
[380794914,1755863143826,-675.19,0.000275,7]
[380794915,1755863143846,-4710.94,0.000275,2]
[380794916,1755863143871,-600.0,0.0002751,20]
[380794917,1755863143891,-168.0,0.00027563,2]
[380794918,1755863143912,-168.0,0.00027589,2]
[380794919,1755863143935,-480.0,0.00027616,10]
[380794920,1755863143956,-500.0,0.00027628,2]
[380794921,1755863143978,-500.0,0.00027628,2]
[380794922,1755863144003,-350.0,0.00027628,2]
[380794923,1755863144023,-500.0,0.00027628,2]
[380794924,1755863144044,-273.88676898,0.00027628,2]
[380794925,1755863144066,-500.0,0.00027628,2]
[380794926,1755863144089,-411.60090844,0.00027628,2]
[380794927,1755863144110,-490.40032927,0.00027628,2]
[380794928,1755863144130,-10978.4878909,0.00027629,2]
[380794938,1755863184901,370.88927503,0.000199,2]
[380794958,1755863350147,358.52629936,0.000199,2]
[380795096,1755863432667,-358.52629915,0.0002157,2]
[380795097,1755863432676,-358.52629915,0.00023241,2]
[380795099,1755863432685,-199.0,0.00025772,10]
[380795101,1755863432694,-358.52629915,0.00026582,5]
[380795103,1755863432704,-480.0,0.00027199,3]
[380795105,1755863432714,-480.0,0.00027199,10]
[380795106,1755863432723,-480.0,0.00027199,10]
[380795108,1755863432732,-1004.499816,0.000272,2]
[380795110,1755863432742,-1156.0,0.00027212,2]
[380795112,1755863432751,-250.0,0.00027213,2]
[380795113,1755863432759,-300.0,0.00027472,2]
[380795115,1755863432769,-75.41609655,0.00027473,10]
[380795117,1755863432780,-404.58390345,0.00027473,10]
[380795118,1755863432789,-480.0,0.00027473,10]
[380795120,1755863432805,-483.21942761,0.00027567,2]
[380795122,1755863432814,-487.17952177,0.00027639,2]
[380795146,1755863438641,-5680.5,0.00027639,2]
[380795335,1755863440798,-2928.35658836,0.00027639,2]
[380795617,1755863443800,-180.05147322,0.00027639,2]
[380795702,1755863444638,-6304.22671139,0.00027639,2]
[380802134,1755863515315,818.95703664,0.000199,2]
[380815489,1755863681722,791.65846881,0.000199,2]
[380815552,1755863849770,789.9363441,0.000199,2]
[380815596,1755864015562,793.15728175,0.000199,2]
[380815613,1755864064580,6485.06630754,0.00027397,120]
[380815644,1755864181068,790.29886387,0.000199,2]
[380815668,1755864346900,763.95556834,0.000199,2]
[380815989,1755864432149,-763.95556818,0.0002157,2]
[380815990,1755864432169,-3000.0,0.00022,2]
[380815991,1755864432189,-3823.4523,0.0002201,2]
[380815992,1755864432209,-493.0,0.00023238,2]
[380815993,1755864432231,-763.95556818,0.00023241,2]
[380815994,1755864432250,-388.0,0.00024899,2]
[380815995,1755864432269,-300.0,0.00024899,2]
[380815996,1755864432288,-503.32711868,0.000249,2]
[380815997,1755864432309,-458.17433534,0.000249,2]
[380815998,1755864432330,-351.47899447,0.000249,2]
[380815999,1755864432351,-763.95556818,0.00024911,2]
[380816000,1755864432369,-174.76353445,0.00025018,2]
[380816001,1755864432388,-280.0,0.00025575,2]
[380816002,1755864432407,-300.0,0.00025575,2]
[380816003,1755864432427,-734.29489627,0.0002562,2]
[380816004,1755864432446,-151.74,0.00025678,7]
[380816005,1755864432467,-7890.15690725,0.00025678,2]
[380816006,1755864437137,-38667.21304539,0.00025678,2]
[380816007,1755864437156,-480.0,0.00025776,10]
[380816008,1755864437178,-480.0,0.00025776,10]
[380816009,1755864437199,-151.74,0.00025778,7]
[380816010,1755864437218,-160.0,0.00025785,2]
[380816011,1755864437238,-151.74,0.00025878,7]
[380816012,1755864437258,-151.77844517,0.00025978,7]
[380816013,1755864437278,-734.29489622,0.00026017,2]
[380816014,1755864437299,-480.0,0.0002605,10]
[380816015,1755864437321,-480.0,0.00026324,10]
[380816016,1755864437341,-260.0,0.00026333,2]
[380816017,1755864437361,-734.29489622,0.00026414,2]
[380816018,1755864437383,-763.95556818,0.00026582,5]
[380816019,1755864437403,-168.0,0.00026584,2]
[380816020,1755864437422,-480.0,0.00026598,10]
[380816021,1755864437443,-168.0,0.00026645,2]
[380816022,1755864437463,-734.29489622,0.00026811,2]
[380816023,1755864437484,-480.0,0.00026872,10]
[380816024,1755864437503,-360.0,0.00026881,2]
[380816025,1755864437522,-420.0,0.00026977,2]
[380816026,1755864437547,-480.0,0.00027146,10]
[380816027,1755864437566,-734.29489622,0.00027209,2]
[380816028,1755864437588,-168.0,0.00027263,7]
[380816029,1755864437612,-480.0,0.0002742,10]
[380816030,1755864437632,-460.0,0.00027428,2]
[380816031,1755864437653,-1873.27424498,0.00027442,2]
[380816032,1755864437674,-795.63719708,0.00027473,2]
[380816033,1755864437695,-646.17,0.00027508,3]
[380816034,1755864437714,-323.09,0.00027508,3]
[380816035,1755864437734,-161.54,0.00027508,3]
[380816036,1755864437753,-484.67,0.00027508,3]
[380816037,1755864437772,-500.0,0.00027517,2]
[380816038,1755864437792,-500.0,0.00027517,2]
[380816039,1755864437814,-500.0,0.00027517,2]
[380816040,1755864437835,-500.0,0.00027517,2]
[380816041,1755864437855,-500.0,0.00027517,2]
[380816042,1755864437876,-405.1556328,0.00027517,2]
[380816043,1755864437896,-376.86903937,0.00027517,2]
[380816044,1755864437917,-482.98274003,0.00027517,2]
[380816045,1755864437938,-500.0,0.00027517,2]
[380816046,1755864437959,-480.0,0.00027518,10]
[380816047,1755864437979,-2509.01600841,0.00027518,2]
[380816048,1755864438095,-13301.91130761,0.00027518,2]
[380816061,1755864513828,636.62964015,0.000199,2]
[380816069,1755864561131,-636.62964015,0.0002157,2]
[380816070,1755864561152,-636.62964015,0.00023241,2]
[380816071,1755864561176,-636.62964015,0.00024911,2]
[380816079,1755864608675,152.05906237,0.000211,2]
[380816080,1755864608698,75.69093763,0.000211,2]
[380816129,1755864636077,5000.0,0.000211,5]
[380816131,1755864636090,-636.62964015,0.00026582,5]
[380816133,1755864636099,-546.55347465,0.00027418,2]
[380816135,1755864636108,-275.3605861,0.0002742,2]
[380816137,1755864636118,-300.0,0.00027517,2]
[380816139,1755864636127,-300.0,0.00027517,2]
[380816141,1755864636137,-480.0,0.00027518,10]
[380816143,1755864636146,-480.0,0.00027518,10]
[380816145,1755864636155,-5176.15087717,0.00027518,2]
[380816148,1755864636167,-55055.20206603,0.00027518,2]
[380816150,1755864636176,-173.58857171,0.00027522,3]
[380816152,1755864636185,-326.0,0.00027522,3]
[380816154,1755864636195,-326.0,0.00027522,3]
[380816155,1755864636204,-326.0,0.00027522,3]
[380816157,1755864636213,-326.0,0.00027522,3]
[380816159,1755864636222,-326.0,0.00027522,3]
[380816161,1755864636232,-326.0,0.00027522,3]
[380816163,1755864636241,-326.0,0.00027522,3]
[380816165,1755864636252,-326.0,0.00027522,3]
[380816167,1755864636262,-326.0,0.00027522,3]
[380816169,1755864636271,-326.0,0.00027522,3]
[380816171,1755864636281,-326.0,0.00027522,3]
[380816173,1755864636291,-326.0,0.00027522,3]
[380816175,1755864636300,-288.30266499,0.00027522,3]
[380816177,1755864636310,-1254.50800421,0.00027528,2]
[380816179,1755864636320,-40842.36680306,0.00027528,2]
[380816182,1755864636332,-86340.98145176,0.00027528,2]
[380816184,1755864636341,-501.84701531,0.00027573,5]
[380816186,1755864636353,-500.58725316,0.00027573,5]
[380816188,1755864636362,-500.0,0.00027573,2]
[380816190,1755864636371,-160.0,0.0002759,2]
[380816191,1755864636381,-480.0,0.00027638,10]
[380816193,1755864636390,-795.63719706,0.00027687,2]
[380816195,1755864636400,-160.0,0.00027688,10]
[380816197,1755864636409,-200.22501032,0.00027694,10]
[380816199,1755864636420,-279.77498968,0.00027694,10]
[380816201,1755864636429,-199.0,0.00027697,7]
[380816203,1755864636439,-168.0,0.00027739,2]
[380816205,1755864636448,-46.26005946,0.00027792,10]
[380816328,1755864638191,-433.73994054,0.00027792,10]
[380816329,1755864638201,-21.53005946,0.00027792,10]
[380816330,1755864638212,-458.46994054,0.00027792,10]
[380816331,1755864638222,-480.0,0.00027792,10]
[380816332,1755864638231,-795.63719706,0.00027901,2]
[380816333,1755864638240,-300.0,0.00027963,20]
[380816334,1755864638252,-300.0,0.00027963,20]
[380816335,1755864638262,-300.0,0.00027963,20]
[380816336,1755864638271,-300.0,0.00027963,20]
[380816337,1755864638280,-136.77584765,0.00027963,20]
[380816338,1755864638291,-163.22415235,0.00027963,20]
[380816339,1755864638300,-300.0,0.00027963,20]
[380816340,1755864638310,-300.0,0.00027963,20]
[380816341,1755864638320,-300.0,0.00027963,20]
[380816342,1755864638329,-300.0,0.00027963,20]
[380816344,1755864638338,-300.0,0.00027963,20]
[380816345,1755864638347,-300.0,0.00027963,20]
[380816346,1755864638356,-300.0,0.00027963,20]
[380816347,1755864638365,-300.0,0.00027963,20]
[380816348,1755864638375,-300.0,0.00027963,20]
[380816349,1755864638384,-300.0,0.00027963,20]
[380816350,1755864638394,-480.0,0.00027968,10]
[380816351,1755864638403,-9492.10780841,0.0002799,2]
[380816352,1755864638414,-1222.32199608,0.0002799,2]
[380816353,1755864638425,-6904.11444211,0.0002799,2]
[380816354,1755864638536,-42612.8086966,0.0002799,2]
[380816355,1755864638546,-160.0,0.00028,3]
[380816356,1755864638556,-100.62589873,0.00028,7]
[380816357,1755864638567,-59.37410127,0.00028,7]
[380816358,1755864638576,-160.0,0.00028,3]
[380816359,1755864638589,-281.31,0.00028,7]
[380816360,1755864638599,-1000.0,0.00028,28]
[380816361,1755864638608,-480.0,0.00028066,10]
[380816362,1755864638619,-480.0,0.00028066,10]
[380816363,1755864638628,-480.0,0.00028066,10]
[380816364,1755864638638,-795.63719706,0.00028115,2]
[380816365,1755864638647,-168.0,0.00028158,2]
[380816366,1755864638659,-168.0,0.00028197,2]
[380816367,1755864638668,-199.0,0.00028214,2]
[380816368,1755864638678,-480.0,0.00028242,10]
[380816369,1755864638688,-636.62964015,0.00028252,9]
[380816370,1755864638697,-199.0,0.00028314,2]
[380816371,1755864638707,-666.15563142,0.00028329,2]
[380816372,1755864638716,-795.63719706,0.00028329,2]
[380816373,1755864638725,-960.64542992,0.00028329,2]
[380816374,1755864638737,-755.27,0.00028329,2]
[380816440,1755864639902,-4296.00956185,0.00028329,2]
[380816442,1755864639912,-1372.15674565,0.00028329,2]
[380816444,1755864639924,-2374.39174431,0.00028329,2]
[380816446,1755864639934,-94.0230226,0.0002834,10]
[380816448,1755864639945,-382.76199589,0.0002834,10]
[380816450,1755864639957,-3.21498151,0.0002834,10]
[380816452,1755864639967,-480.0,0.0002834,10]
[380816454,1755864639977,-480.0,0.0002834,10]
[380816456,1755864639986,-199.0,0.00028354,2]
[380816458,1755864639996,-199.0,0.00028378,7]
[380816460,1755864640012,-607.67,0.000284,7]
[380816463,1755864640022,-151.0,0.000284,15]
[380816466,1755864640032,-500.0,0.000284,5]
[380816469,1755864640041,-855.84135744,0.00028418,20]
[380816472,1755864640053,-1086.64761428,0.00028418,20]
[380816509,1755864640415,-64186.1321461,0.00028418,20]
[380816511,1755864640427,-15483.20640806,0.00028418,20]
[380816513,1755864640438,-7128.91025915,0.00028418,20]
[380816515,1755864640449,-3694.95,0.00028418,20]
[380816517,1755864640461,-257.99999997,0.00028418,20]
[380816519,1755864640472,-3303.94299894,0.00028418,20]
[380817040,1755864645999,-680.90757339,0.00028418,20]
[380817056,1755864646154,-2348.917199,0.00028418,20]
[380817058,1755864646166,-17966.10013934,0.00028418,20]
[380817061,1755864646182,-5919.82181791,0.00028418,20]
[380817063,1755864646193,-4120.04839328,0.00028418,20]
[380817065,1755864646204,-3468.0406816,0.00028418,20]
[380817067,1755864646216,-1788.95,0.00028418,20]
[380817069,1755864646227,-17691.96165883,0.00028418,20]
[380817072,1755864646239,-24284.18641843,0.00028418,20]
[380817074,1755864646254,-23480.619995,0.00028418,20]
[380817076,1755864646266,-113845.584727,0.00028418,20]
[380817078,1755864646279,-308.97715215,0.00028418,20]
[380820118,1755864679535,1257.42859776,0.000199,2]
[380820163,1755864679977,1269.08,0.000211,2]
[380825781,1755864743763,-5000000.0,0.00028418,20]
[380826601,1755864752585,-4218373.85625508,0.00028418,20]
[380827565,1755864843224,2248.65087437,0.000199,2]
[380827964,1755864926764,1125.32,0.00027397,120]
[380827965,1755864951652,10000.0,0.000211,2]
[380827966,1755864972336,3658.54,0.000211,2]
[380827967,1755865008183,2308.7828417,0.000199,2]
[380827992,1755865175157,2354.95117004,0.000199,2]
[380827995,1755865343431,2395.47629552,0.000199,2]
[380828011,1755865539214,2350.83933999,0.000199,2]
[380828015,1755865571555,327.4721269,0.00027397,120]
[380828033,1755865705574,2647.59890262,0.000199,2]
[380828057,1755865758203,-2647.59890245,0.0002157,2]
[380828058,1755865758224,-220.0,0.00021624,2]
[380828059,1755865758244,-160.0,0.00023,2]
[380828060,1755865758267,-2647.59890245,0.00023241,2]
[380828061,1755865758287,-300.0,0.00023999,2]
[380828062,1755865758307,-34439.68247328,0.00024,2]
[380828063,1755865758328,-1200.0,0.00024264,2]
[380828064,1755865758348,-5000.0,0.00024265,2]
[380828065,1755865758370,-300.0,0.00024658,2]
[380828066,1755865758392,-2647.59890245,0.00024911,2]
[380828067,1755865758412,-9224.77701822,0.00025,2]
[380828068,1755865758434,-5138.01815537,0.00025,7]
[380828069,1755865758457,-5998.77294326,0.00025,2]
[380828105,1755865832104,-300.0,0.00024999,2]
[380828107,1755865832113,-280.0,0.00024999,2]
[380828108,1755865832123,-300.0,0.00024999,2]
[380828109,1755865832132,-1200.0,0.00024999,2]
[380828110,1755865832142,-22607.86903134,0.00025,2]
[380828112,1755865832151,-163.62,0.00025,7]
[380828113,1755865832160,-480.0,0.00025019,10]
[380828114,1755865832169,-610.18,0.00025019,10]
[380828115,1755865832178,-480.0,0.00025019,10]
[380828116,1755865832188,-480.0,0.00025019,10]
[380828117,1755865832197,-174.76353445,0.00025041,2]
[380828118,1755865832206,-174.76353445,0.00025041,2]
[380828119,1755865832215,-160.0,0.00025096,2]
[380828120,1755865832225,-844.33851978,0.00025096,2]
[380828121,1755865832234,-216.99125601,0.00025096,2]
[380828123,1755865832244,-480.0,0.00025109,10]
[380828124,1755865832254,-480.0,0.00025109,10]
[380828125,1755865832263,-480.0,0.00025109,10]